Cogmind - Beta 15 @@@ ROGUE MODE // 2025.05.19 @ 11:10:39 Player: Minty Result: Destroyed by Autobeam Turret with Autobeam Performance ------------- Evolutions (0) 0 Regions Visited (2) 400 Robots Destroyed (23) 115 Value Destroyed (470) 470 Prototype IDs (13) 260 Alien Tech Used (0) 0 Bonus (0) 0 TOTAL SCORE: 1245 Bonus ------- None Cogmind --------- Core Integrity 0/250 Matter 18/300 Energy 67/100 System Corruption 0% Temperature Cool (16) Movement Core (400) Ox7 Location -10/Subcaves Parts ------- > --- POWER (1) -------- (None) > --- PROPULSION (2) --- (None) > --- UTILITY (2) ------ Large Storage Unit > --- WEAPON (2) ------- Particle Gun > --- INVENTORY (15) --- Meta Core Compact Wheel Small Storage Unit Large Battery (200) Visual Processing Unit Visual Processing Unit Visual Processing Unit Riot Gun Battle Rifle Rocket Launcher Rocket Launcher Rocket Launcher Datajack Peak State ------------ > --- POWER ------------ Ion Engine > --- PROPULSION ------- Light Treads Light Treads > --- UTILITY ---------- Large Storage Unit Visual Processing Unit > --- WEAPON ----------- Particle Gun Particle Gun > --- INVENTORY -------- Light Ion Engine Aluminum Leg Aluminum Leg Wheel Compact Wheel Small Storage Unit Medium Laser Particle Gun Particle Gun Assault Rifle Light Assault Rifle Rocket Launcher Rocket Launcher Rocket Launcher Rocket Launcher [Rating: 12] Favorites ----------- Power Ion Engine Engine Ion Engine Propulsion Light Treads Treads Light Treads Leg Aluminum Leg Wheel Wheel Utility Large Storage Unit Device Heat Sink Storage Large Storage Unit Processor Visual Processing Unit Weapon Particle Gun Energy Gun Particle Gun Ballistic Gun Battle Rifle Launcher Rocket Launcher Special Melee Weapon Datajack Build | -11 -10 -10 ------- Run | Yrd Mat Sub Slots Evolved . | . . . Power . | . . . Propulsion . | . . . Utility . | . . . Weapon . | . . . Parts Attached 23 | . 17 6 Power 4 | . 4 . Engine 4 | . 4 . Core . | . . . Reactor . | . . . Propulsion 5 | . 5 . Treads 4 | . 4 . Leg . | . . . Wheel 1 | . 1 . Hover . | . . . Flight . | . . . Utility 3 | . 3 . Device 1 | . 1 . Storage 1 | . 1 . Processor 1 | . 1 . Hackware . | . . . Protection . | . . . Artifact . | . . . Weapon 11 | . 5 6 Energy Gun 6 | . 5 1 Energy Cannon . | . . . Ballistic Gun 1 | . . 1 Ballistic Cannon . | . . . Launcher 3 | . . 3 Special Weapon . | . . . Impact Weapon . | . . . Slashing Weapon . | . . . Piercing Weapon . | . . . Special Melee Weapon 1 | . . 1 Unidentified Prototypes . | . . . Parts Lost 10 | . 4 6 Power 2 | . 1 1 Propulsion 3 | . 1 2 Utility 1 | . . 1 Weapon 4 | . 2 2 Highest Loss Streak 2 | . 2 2 To Critical Strikes . | . . . Average Backups 13 | 6 13 13 Power . | 1 . . Propulsion 1 | 4 1 1 Utility 4 | . 3 5 Weapon 5 | 1 6 5 Tool/Special . | . . . Unused Backups 12 | . 2 10 Power . | . . . Propulsion 3 | . 2 1 Utility 5 | . . 5 Weapon 3 | . . 3 Tool/Special 1 | . . 1 Average Slot Usage (%) 75 | . 96 65 Engine 9 | . 13 6 Treads 9 | . 21 3 Wheel 5 | . 4 6 Device 12 | . 9 14 Storage 14 | . 14 14 Energy Gun 14 | . 24 8 Ballistic Gun 7 | . 2 10 Peak Build Rating 12 | 6 12 12 Average Rating 9 | 6 10 8 On Entrance 7 | 6 6 11 Naked Turns . | . . . Heaviest Build 33 | 11 32 33 Greatest Support 40 | 20 40 10 Greatest Overweight (x) 9 | . 3 9 Average Overweight (x) 3 | . 1 4 Largest Inventory Capacity 15 | 8 15 15 Average Capacity 14 | 8 14 15 Most Carried 15 | 6 15 15 Average Carried 13 | 6 13 13 Final Capacity 15 | 8 15 15 Final Carried 13 | 6 13 13 Class Distribution -------------------- 89% | Mutant 10% | Scavenger-Mutant Dominant Class ---------------- Mutant | -10/Materials Mutant | -10/Subcaves Resources | -11 -10 -10 ----------- Run | Yrd Mat Sub Matter Collected 371 | 185 186 . Remotely . | . . . Salvage Created 516 | . 428 88 Parts 29 | . 26 3 Haulers Intercepted 1 | . 1 . Recyclers Shooed . | . . . Parts Field Recycled . | . . . Retrieved Matter . | . . . Parts Self-Destructed 5 | . . 5 Prevented . | . . . Kills | -11 -10 -10 ------- Run | Yrd Mat Sub Combat Hostiles Destroyed 20 | . 14 6 Melee 1 | . 1 . Guns 12 | . 12 . AOE 6 | . . 6 Classes Destroyed 4 | . 4 . Worker 2 | . 2 . Hauler 1 | . 1 . Swarmer 10 | . 6 4 Grunt 10 | . 8 2 Best Kill Streak 4 | . 4 4 Combat Bots Only 4 | . 3 4 Max Kills in Single Turn 3 | . 1 3 Gunslinging . | . . . Exploded 3 | . . 3 Melee 1 | . 1 . Uniques/NPCs Destroyed . | . . . Combat | -11 -10 -10 -------- Run | Yrd Mat Sub Hostile Shots Fired 197 | . 106 91 Missed 55 | . 24 31 Hits 142 | . 82 60 Projectile 142 | . 82 60 Critical Strikes 2 | . . 2 Damage Taken 1317 | . 815 502 Core 251 | . 127 124 Absorbed by Shields . | . . . Core Remaining (%) 100 | 100 . . Volleys Fired 91 | . 57 34 Largest 2 | . 2 2 Hottest 130 | . 130 90 Shots Fired 147 | . 103 44 Gun 135 | . 103 32 Cannon . | . . . Launcher 12 | . . 12 Special . | . . . Kinetic 24 | . 4 20 Thermal 105 | . 99 6 Explosive 12 | . . 12 Electromagnetic 6 | . . 6 Robot Hit Streak 8 | . 8 5 Robot Miss Streak 6 | . 6 4 Penetration Max . | . . . Secondary Targets 2 | . 2 . Max Gunslinging Chain 1 | . 1 . Shots Hit Robots 74 | . 57 17 Core Hits 31 | . 21 10 Critical Kills . | . . . Critical Parts Destroyed . | . . . Critical Strikes 3 | . 3 . Burn 3 | . 3 . Melee Attacks 2 | . . 2 Impact . | . . . Slashing . | . . . Piercing . | . . . Sneak Attacks 2 | . . 2 Combat Hostiles . | . . . Follow-up Attacks . | . . . Damage Inflicted 1567 | . 986 581 Guns 1129 | . 966 163 Cannons . | . . . Explosions 418 | . . 418 Melee . | . . . Ramming 20 | . 20 . Kinetic 143 | . 27 116 Thermal 986 | . 939 47 Explosive 418 | . . 418 Electromagnetic . | . . . Impact . | . . . Slashing . | . . . Piercing . | . . . Highest Corruption . | . . . Average Corruption . | . . . Corruption Purged . | . . . Corruption Blocked . | . . . Overload Shots . | . . . Overflow Damage 42 | . . 42 Projectiles . | . . . Explosions 42 | . . 42 Melee . | . . . Knockbacks . | . . . Impact . | . . . Kinetic . | . . . Secondary . | . . . Self-Inflicted Damage 43 | . . 43 Shots 2 | . . 2 Rammed 4 | . 4 . Targets Rammed 5 | . 5 . Kicked . | . . . Crushed 1 | . 1 . Highest Temperature 406 | . 406 23 Average Temperature 159 | . 162 9 Received Heat Transfer 537 | . 267 270 Effects 11 | . 11 . Shutdowns 1 | . 1 . Energy Bleed 2 | . 2 . Interference 6 | . 6 . Short Circuit 1 | . 1 . Damage (minor) 1 | . 1 . Siege Activations . | . . . Martial Activations . | . . . Shielding Activations . | . . . Robots Disrupted . | . . . Combat Hostiles . | . . . Robots Corrupted . | . . . Combat Hostiles . | . . . Parts Fried . | . . . Impact Corruptions . | . . . Robots Melted 1 | . 1 . Combat Hostiles 1 | . 1 . Parts Melted 4 | . 4 . Heat Transferred 2516 | . 2405 111 Parts Sabotaged . | . . . Parts Stolen . | . . . Parts Stripped . | . . . Power Chain Reactions . | . . . Alert | -11 -10 -10 ------- Run | Yrd Mat Sub Maximum Alert Level . | . . . Low Security (%) 100 | 100 100 . Level 1 . | . . . Level 2 . | . . . Level 3 . | . . . Level 4 . | . . . Level 5 . | . . . High Security . | . . . Max Security . | . . . Peak Influence 118 | . 118 . Initial . | . . . Average 53 | . 54 . Influence Increases 553 | . 348 205 Destroy 0b10 Robot/C 400 | . 280 120 Destroy 0b10 Robot/NC 15 | . 15 . Destroy Leader 62 | . 52 10 Destroy Structure 1 | . 1 . Lose Combat Pursuer 75 | . . 75 Influence Decreases 553 | . 244 309 Entered New Map 51 | . . 51 Time Decay 442 | . 204 238 Lost Part 60 | . 40 20 Squads Dispatched 2 | . 2 . Investigation . | . . . Extermination . | . . . Reinforcement 2 | . 2 . Assault . | . . . Garrison . | . . . Intercept . | . . . Searches Triggered . | . . . Construction Impeded . | . . . Haulers Reinforced . | . . . Active Scanning Responses . | . . . Cargo Convoy Interrupts . | . . . Stealth | -11 -10 -10 --------- Run | Yrd Mat Sub Distress Signals . | . . . Communications Jammed . | . . . Distress Signals . | . . . Times Spotted 32 | . 23 9 Peak Tracking Total 4 | . 4 4 Tactical Retreats 2 | . . 2 Traps | -11 -10 -10 ------- Run | Yrd Mat Sub Traps Triggered 1 | . 1 . Indirectly . | . . . Trap Hack Attempts . | . . . Triggered . | . . . Disarmed . | . . . Reprogrammed . | . . . Reused . | . . . Traps Extracted . | . . . Installed . | . . . Triggered . | . . . Machines | -11 -10 -10 ---------- Run | Yrd Mat Sub Machines Disabled 6 | . . 6 Max in Single Turn 2 | . . 2 Machines Repaired . | . . . Machines Dismantled . | . . . Machines Sabotaged . | . . . Overloaded Fab Kills . | . . . Hacking | -11 -10 -10 --------- Run | Yrd Mat Sub Machines Accessed 4 | . 3 1 Terminals 2 | . 2 . Fabricators . | . . . Repair Stations . | . . . Recycling Units 1 | . 1 . Scanalyzers . | . . . Garrison Access . | . . . Total Hacks 7 | . 6 1 Successful 6 | . 5 1 Failed 1 | . 1 . Catastrophic . | . . . Database Lockouts . | . . . Manual 4 | . 4 . Terminals 5 | . 5 . Fabricators . | . . . Repair Stations . | . . . Recycling Units 1 | . 1 . Scanalyzers . | . . . Garrison Access . | . . . Terminal Hacks 4 | . 3 1 Robot Analysis 1 | . 1 . Prototype ID Bank 1 | . 1 . Alert Level 1 | . 1 . Proto ID Catalog 1 | . . 1 Fabricator Hacks . | . . . Repair Station Hacks . | . . . Recycling Unit Hacks 1 | . 1 . Report Inventory 1 | . 1 . Scanalyzer . | . . . Garrison Access Hacks . | . . . Unauthorized Hacks 1 | . 1 . Terminals 1 | . 1 . Botnet 1 | . 1 . Fabricators . | . . . Repair Stations . | . . . Recycling Units . | . . . Scanalyzers . | . . . Garrison Access . | . . . Data Cores Recovered . | . . . Used . | . . . Hacking Detections 2 | . 2 . Full Trace Events 1 | . 1 . Feedback Events . | . . . Feedback Blocked . | . . . Robot Schematics Acquired . | . . . Robots Built . | . . . Authchips . | . . . Time . | . . . Total Robot Build Rating . | . . . Part Schematics Acquired . | . . . Parts Built . | . . . Authchips . | . . . Time . | . . . Total Part Build Rating . | . . . Parts Repaired . | . . . Time . | . . . Parts Recycled . | . . . Recycled Matter . | . . . Retrieved Matter . | . . . Retrieved Components . | . . . Parts Scanalyzed . | . . . Part Schematics Acquired . | . . . Parts Damaged . | . . . Bothacking | -11 -10 -10 ------------ Run | Yrd Mat Sub Used RIF Installer . | . . . Robots Hacked 1 | . . 1 Non-combat 1 | . . 1 Combat . | . . . Robot Hacks Applied 2 | . . 2 parse_system 2 | . . 2 Relay Couplers Released . | . . . Fabnet Peak Effective % . | . . . Robots Rewired . | . . . Allies Hacked . | . . . Hacks Repelled . | . . . Allies | -11 -10 -10 -------- Run | Yrd Mat Sub Total Allies . | . . . Largest Group . | . . . Highest-Rated Group . | . . . Highest-Rated Ally . | . . . Total Orders . | . . . Ally Attacks . | . . . Total Damage . | . . . Kills . | . . . Allies Corrupted . | . . . Allies Melted . | . . . Intel | -11 -10 -10 ------- Run | Yrd Mat Sub Active Infowar (turns) 80 | . 80 . Optics 80 | . 80 . Robot Analysis Total 1 | . 1 . Derelict Logs Recovered 1 | . . 1 Drone Launches . | . . . Drone Recoveries . | . . . Exploration | -11 -10 -10 ------------- Run | Yrd Mat Sub Turns Passed 1652 | 2 554 1096 Spaces Moved 718 | 2 224 492 Core 139 | . . 139 Treads 112 | . 112 . Legs 15 | 2 13 . Wheels 452 | . 99 353 Hover . | . . . Flight . | . . . Fastest Speed 110 | 120 120 110 Average Speed 184 | 120 146 202 Slowest Speed 500 | 120 240 500 Overloaded Moves . | . . . Propulsion Burnouts . | . . . Robots Hopped . | . . . Potential Cave-ins . | . . . Cave-ins Triggered . | . . . Exploration Rate (%) 22 | 2 43 22 Regions Visited 2 Branch Regions 1 Pre-discovered Areas . | . . . Known Exits Taken . | . . . Unknown Exits Taken 2 | 1 1 . Scrap Searched . | . . . Spaces Dug . | . . . Terrain Destroyed 80 | . . 80 Melee . | . . . Projectile 1 | . . 1 AOE 79 | . . 79 Terrain Rammed . | . . . Walls Destroyed . | . . . Machines Disabled . | . . . Actions | -11 -10 -10 --------- Run | Yrd Mat Sub Total 898 | 1 347 550 Wait 25 | . 21 4 Move 716 | 1 223 492 Hop . | . . . Pick Up 13 | . 12 1 Fast Attach 6 | . 4 2 Attach 8 | . 6 2 Detach 8 | . 5 3 Swap 15 | . 7 8 Drop 9 | . 7 2 Fire 91 | . 57 34 Melee 2 | . . 2 Ram . | . . . Kick . | . . . Crush 5 | . 5 . Escape Stasis . | . . . Rewire . | . . . Trap . | . . . Miscellaneous . | . . . Route ------- -11/Scrapyard -10/Materials (discovered 2 exits: [*Mat] / *Sub) -10/Subcaves (discovered 1 exit: [*Rec]) History --------- Turn | Location | Event 1 | -11/Scrapyard | Discovered new exit (range 1) 3 | -11/Scrapyard | Entered Materials 469 | -10/Materials | Discovered new exit (range 15) 526 | -10/Materials | Core integrity fell below 50% 551 | -10/Materials | Discovered new exit (range 7) 557 | -10/Materials | Entered Subcaves 573 | -10/Subcaves | A swath of the cavern ceiling suddenly collapsed 611 | -10/Subcaves | Shifting Twisted Machinery released Riot Gun 613 | -10/Subcaves | Shifting Twisted Machinery released Battle Rifle 633 | -10/Subcaves | Build established: Mutant 652 | -10/Subcaves | Shifting Twisted Machinery released Sub. Monowheel 715 | -10/Subcaves | Visited 4L-MR0's lab 719 | -10/Subcaves | Learned 2 Materials zone layouts 921 | -10/Subcaves | Found Meta Core 1096 | -10/Subcaves | Core integrity fell below 20% 1647 | -10/Subcaves | Discovered new exit (range 10) 1653 | -10/Subcaves | Destroyed by Autobeam Turret with Autobeam Last Messages --------------- 01046_ S-10 Pest destroyed. 01046_ G-34 Mercenary destroyed. 01046_ S-10 Pest destroyed. 01054_ Lgt. Ion Engine fries itself beyond repair. 01057_ Sml. Laser fries itself beyond repair. 01058_ Destroyed Aluminum Leg. 01058_ G-47 Trooper destroyed. 01058_ Machine disabled. 01061_ The unstable cave ceiling collapses. 01073_ S-10 Pest springs to life. 01085_ Machine disabled. 01086_ Ion Engine destroyed. 01091_ S-10 Pest destroyed. 01091_ Destroyed Lgt. Ion Engine. 01091_ Destroyed Flight Unit. 01091_ S-10 Pest destroyed. 01095_ Rocket Launcher destroyed. 01647_ EXIT=FOUND 01647_ Particle Gun destroyed. 01651_ Heat Sink destroyed. Map ----- +----------------------------------------------------+ | # """ "#### ##?## ## #?????# #? | | # "" "## ##### # #????## ## | | ### ## "# ## #????# # | | ??# ## # ### # ##?# | | ??# #### ## ## # | | ??# #### ### ## ## | | ??### ### ## ### #?# #### #? | | ????# #?## ## ### ## ## ##??###? | | ????# #??# ## ### #####??????? | | ????# #??# ### ## ### #??????????? | | ????####??# ##?# ## # #?# #??????????? | | ??????????###??#### ######?# ##??????????? | | ?????????????????# #?????# ##???????????? | | ????????????????# #????## ##????????????? | | ???????????????# ## #???## #?????????????? | | ??????????????# #?#####???# ##?????????????? | | ??????????????#####??????????## ##??????????????? | | ??????????????##?## ?????????## ##??????????????? | | ??????????????# # < ????????# #??????????????? | | ?????????????## ????????## #??????????????? | | ?????????????# ???????# #??????????????? | | ?????????????# t t ??????# #??????????????? | | ?????????????# ??##### ### ##?????????? | | ?????????????## ### #?????????? | | ?????????????# # ###???????? | | ?????????????? # @ ??? | | ??????????????# % % #??? | | ????????????# ## % #??? | | ?????????????? # #### ##### ???? | | ????????????? #??# ##????? ???? | | ???????????? ??#####??????? ???? | | ???????????? # ???????????????????? | | ????????????? # ???????????????????? | | ????????????? # # ### #??????????????????? | | ??????????????##?####??# #??????????????????? | | ???????????????????????### #??????????????????? | | ?????????????????????????## #??????????????????? | | ??????????????????????????? ??????????????????? | | ??????????????????????????? ??????????????????? | | ??????????????????????????? ???????????????????? | | ?????????????????????????????????????????????????? | | ?????????????????????????????????????????????????? | | ?????????????????????????????????????????????????? | | ?????????????????????????????????????????????????? | | ?????????????????????????????????????????????????? | | ?????????????????????????????????????????????????? | | ?????????????????????????????????????????????????? | | ?????????????????????????????????????????????????? | | ?????????????????????????????????????????????????? | | ?????????????????????????????????????????????????? | +----------------------------------------------------+ Best States ------------- Heat Dissipation 35 Energy Generation 10 Energy Capacity 250 Matter Stores 300 Matter Capacity 300 Sight Range 18 Terrain Scan Density 10 Evasion (%) 55 Recoil Reduction 2 Item Schematics ----------------- None Robot Schematics ------------------ None Fabricated ------------ Nothing Repaired ---------- Nothing Alien Tech Used ----------------- None Achievements -------------- None Challenges ------------ None Game ------ Seed AlertPowerClaws Manual? 0 Play Time 00:13:43 Cumulative 1023.3 hours Start 2025.05.19 @ 10:57:03 End 2025.05.19 @ 11:10:39 Sessions 1 Manual Loads 0 Difficulty Rogue Special Mode None Game No. 1251 Rogue 969 Adventurer 124 Explorer 158 Win Type - Total 44 Types 31/0/8/3/1/0/0/1/0/0 Lore% 91 Gallery% 85 Achievement% 79 Wizard Run 0 Options --------- Layout 0 ASCII 0 Keyboard 1 Movement Numpad Keybinds 0 Fullscreen 2 Font 18/X11 Map View 76x50 Zoom Use 0% Tactical HUD 1 Map Filters NONE Filters NONE Steam X RUN: 6fa6262c-0e4c-4f36-8a3c-36f7dee60a08